Cogmind - Beta 9.6 @@@ ROGUE MODE // 2020.09.03 @ 20:18:35 Player: Plexion Result: Destroyed by NK-0LA with NK-0LA's Tesla Doomcannon Performance ------------- Evolutions (1) 500 Regions Visited (6) 1200 Robots Destroyed (74) 370 Value Destroyed (1557) 1557 Prototype IDs (25) 500 Alien Tech Used (0) 0 Bonus (-352) -352 TOTAL SCORE: 3775 Bonus ------- High Alert Combat Kills 8 Aligned with FarCom 300 Friendly Fire -660 Cogmind --------- Core Integrity 0/400 Matter 38/300 Energy 310/310 System Corruption 7% Temperature Cool (36) Movement Treading (280) Ox6 Location -8/Mines Parts ------- > --- POWER (1) -------- Reinforced Fission Core > --- PROPULSION (2) --- Light Treads > --- UTILITY (4) ------ High-capacity Storage Unit High-capacity Storage Unit High-capacity Storage Unit Medium Armor Plating > --- WEAPON (2) ------- Light Assault Rifle Heavy Assault Rifle > --- INVENTORY (28) --- Light Treads Light Treads High-capacity Matter Pod (200) Gravity Neutralizing Apparatus Gravity Neutralizing Apparatus Experimental Targeting Computer Advanced Weapon Cycler Medium Armor Plating 8R-AWN's Armor/EX Trap Reconfigurator Supersonic Drone Bay (1/1) AS-neutralizer No. 17b Shock Rifle Shotgun XL Autogun Array 8R-AWN's Boregun Shock Bomb Launcher Rocket Launcher Plasma Cutter Axe Peak State ------------ > --- POWER ------------ Reinforced Fission Core > --- PROPULSION ------- Light Treads Light Treads > --- UTILITY ---------- High-capacity Storage Unit High-capacity Storage Unit High-capacity Storage Unit Hardened Light Armor Plating > --- WEAPON ----------- Light Assault Rifle Plasma Cutter > --- INVENTORY -------- Light Treads Light Treads Light Treads High-capacity Matter Pod Gravity Neutralizing Apparatus Gravity Neutralizing Apparatus Experimental Targeting Computer Advanced Weapon Cycler Medium Armor Plating Medium Armor Plating 8R-AWN's Armor/EX Trap Reconfigurator Supersonic Drone Bay AS-neutralizer No. 17b Shock Rifle Light Assault Rifle Heavy Assault Rifle Shotgun XL Autogun Array 8R-AWN's Boregun Shock Bomb Launcher Rocket Launcher Axe Stasis Trap [Rating: 30] Favorites ----------- Power Light Nuclear Core Engine Ion Engine Power Core Light Nuclear Core Propulsion Light Treads Treads Light Treads Utility High-capacity Storage Unit Device Experimental Heat Sink Storage High-capacity Storage Unit Protection Hardened Light Armor Plating Weapon Light Assault Rifle Ballistic Gun Light Assault Rifle Launcher Rocket Launcher Special Weapon Plasma Cutter Slashing Weapon Axe Build | -11 -10 -10 -9 -9 -9 -8 ------- Run | Scr Mat Min Mat Min Exi Min Slots Evolved 2 | . . . 2 . . . Power . | . . . . . . . Propulsion . | . . . . . . . Utility 2 | . . . 2 . . . Weapon . | . . . . . . . Parts Attached 60 | 6 5 7 16 5 16 5 Power 5 | 1 1 1 1 . 1 . Engine 2 | 1 1 . . . . . Core 3 | . . 1 1 . 1 . Reactor . | . . . . . . . Propulsion 10 | 2 1 1 1 2 2 1 Treads 10 | 2 1 1 1 2 2 1 Leg . | . . . . . . . Wheel . | . . . . . . . Hover . | . . . . . . . Flight . | . . . . . . . Utility 18 | 1 2 . 7 . 7 1 Device 3 | . . . . . 3 . Storage 5 | 1 2 . 1 . 1 . Processor . | . . . . . . . Hackware . | . . . . . . . Protection 10 | . . . 6 . 3 1 Artifact . | . . . . . . . Weapon 27 | 2 1 5 7 3 6 3 Energy Gun . | . . . . . . . Energy Cannon . | . . . . . . . Ballistic Gun 19 | 2 1 3 5 2 4 2 Ballistic Cannon . | . . . . . . . Launcher 5 | . . 1 2 . 1 1 Special Weapon 2 | . . 1 . . 1 . Impact Weapon . | . . . . . . . Slashing Weapon 1 | . . . . 1 . . Piercing Weapon . | . . . . . . . Special Melee Weapon . | . . . . . . . Unidentified Prototypes 3 | . . . . . 3 . Parts Lost 25 | . 4 3 7 2 5 4 Power 4 | . 1 1 1 . 1 . Propulsion 8 | . 2 . 1 2 1 2 Utility 5 | . . . 2 . 2 1 Weapon 8 | . 1 2 3 . 1 1 Highest Loss Streak 4 | . 3 3 3 2 3 4 Average Slot Usage (%) 95 | . 96 86 93 99 98 98 Engine 4 | . 14 9 . . . . Core 6 | . . 3 7 11 10 11 Treads 21 | . 25 17 21 21 22 20 Storage 30 | . 27 28 33 33 29 33 Protection 7 | . . . 10 11 13 11 Ballistic Gun 22 | . 27 25 19 19 19 22 Naked Turns . | . . . . . . . Heaviest Build 126 | 10 73 74 110 112 124 126 Greatest Support 40 | 40 40 40 40 40 40 40 Greatest Overweight (x) 5 | 1 3 3 5 2 3 3 Average Overweight (x) 1 | . 1 2 2 2 2 3 Largest Inventory Capacity 28 | 6 20 20 28 28 28 28 Average Capacity 23 | 5 19 20 28 28 25 28 Most Carried 28 | 2 18 19 28 28 28 28 Average Carried 20 | 1 11 16 20 27 24 27 Final Capacity 28 | 6 20 20 28 28 28 28 Final Carried 28 | 2 16 18 28 26 28 24 Class Distribution -------------------- 98% | Hauler-Mutant Dominant Class ---------------- Hauler-Mutant | -10/Materials Hauler-Mutant | -10/Mines Hauler-Mutant | -9/Materials Hauler-Mutant | -9/Mines Hauler-Mutant | -9/Exiles Hauler-Mutant | -8/Mines Resources | -11 -10 -10 -9 -9 -9 -8 ----------- Run | Scr Mat Min Mat Min Exi Min Matter Collected 1808 | 152 261 365 470 340 220 . Remotely . | . . . . . . . Salvage Created 2189 | . 678 325 771 278 137 . Parts 149 | . 43 18 52 25 11 . Haulers Intercepted 4 | . 2 . 2 . . . Recyclers Shooed 4 | . 1 2 1 . . . Parts Field Recycled . | . . . . . . . Retrieved Matter . | . . . . . . . Parts Self-Destructed . | . . . . . . . Prevented . | . . . . . . . Kills | -11 -10 -10 -9 -9 -9 -8 ------- Run | Scr Mat Min Mat Min Exi Min Combat Hostiles Destroyed 54 | . 18 7 16 9 4 . Guns 40 | . 18 4 9 9 . . Cannons 1 | . . . . . 1 . AOE 13 | . . 3 7 . 3 . Classes Destroyed 9 | . 4 2 2 . 1 . Worker 2 | . . 1 1 . . . Tunneler 5 | . . 3 1 1 . . Hauler 4 | . 2 . 2 . . . Recycler 3 | . 1 1 1 . . . Watcher 2 | . . . 2 . . . Swarmer 15 | . 9 3 . 3 . . Grunt 32 | . 9 4 13 6 . . Sentry 3 | . . . 3 . . . Assembled 7 | . . . . . 7 . Best Kill Streak 8 | . 3 3 8 4 3 . Combat Bots Only 5 | . 3 3 5 3 3 . Max Kills in Single Turn 4 | . 2 3 4 1 4 . Gunslinging 1 | . 1 . . . . . Exploded 3 | . . 3 3 . 2 . Melee . | . . . . . . . Uniques/NPCs Destroyed 1 | . . . . . 1 . 8R-AWN (-9/Exiles) Combat | -11 -10 -10 -9 -9 -9 -8 -------- Run | Scr Mat Min Mat Min Exi Min Damage Taken 4222 | . 839 238 938 448 873 886 Core 564 | . 143 21 195 34 61 110 Absorbed by Shields 186 | . . . . . 116 70 Core Remaining (%) 67 | 100 . 34 . . . . Volleys Fired 232 | . 59 37 66 24 37 9 Largest 2 | . 2 2 2 2 2 2 Hottest 120 | . 40 120 40 46 46 43 Shots Fired 449 | . 117 73 122 48 71 18 Gun 432 | . 117 70 116 48 63 18 Cannon . | . . . . . . . Launcher 10 | . . 1 6 . 3 . Special 7 | . . 2 . . 5 . Kinetic 432 | . 117 70 116 48 63 18 Thermal 7 | . . 2 . . 5 . Explosive 10 | . . 1 6 . 3 . Electromagnetic . | . . . . . . . Robot Hit Streak 22 | . 15 19 22 7 16 6 Robot Miss Streak 3 | . 3 2 3 3 3 3 Penetration Max . | . . . . . . . Secondary Targets 7 | . 2 . 1 4 . . Max Gunslinging Chain 1 | . 1 . 1 1 . . Shots Hit Robots 329 | . 85 49 93 34 56 12 Core Hits 146 | . 36 21 52 17 18 2 Critical Hits 3 | . 1 . 2 . . . Critical Kills 2 | . 1 . 1 . . . Critical Parts Destroyed 1 | . . . 1 . . . Melee Attacks 3 | . . . . 3 . . Impact . | . . . . . . . Slashing 3 | . . . . 3 . . Piercing . | . . . . . . . Sneak Attacks . | . . . . . . . Combat Hostiles . | . . . . . . . Follow-up Attacks . | . . . . . . . Damage Inflicted 4581 | . 944 597 1435 435 1058 112 Guns 3273 | . 944 442 739 403 633 112 Cannons . | . . . . . . . Explosions 1222 | . . 155 685 . 382 . Melee . | . . . . . . . Ramming 43 | . . . 11 32 . . Kinetic 3273 | . 944 442 739 403 633 112 Thermal 43 | . . . . . 43 . Explosive 1222 | . . 155 685 . 382 . Electromagnetic . | . . . . . . . Impact . | . . . . . . . Slashing . | . . . . . . . Piercing . | . . . . . . . Highest Corruption 7 | . . . . . . 7 Average Corruption 3 | . . . . . . 3 Corruption Purged . | . . . . . . . Effects 2 | . . . . . . 2 Targeting Errors 2 | . . . . . . 2 Overload Shots . | . . . . . . . Overflow Damage 46 | . . 21 . 11 14 . Projectiles . | . . . . . . . Explosions 35 | . . 21 . . 14 . Melee 11 | . . . . 11 . . Knockbacks . | . . . . . . . Impact . | . . . . . . . Kinetic . | . . . . . . . Secondary . | . . . . . . . Self-Inflicted Damage 46 | . . 25 . . 21 . Shots 2 | . . 1 . . 1 . Rammed 2 | . . . 1 1 . . Targets Rammed 3 | . . . 1 2 . . Kicked . | . . . . . . . Crushed 1 | . . . . 1 . . Highest Temperature 111 | . 24 20 26 111 95 69 Average Temperature 21 | . 8 8 7 37 29 40 Received Heat Transfer 1070 | . 351 102 420 183 14 . Siege Activations . | . . . . . . . Robots Corrupted . | . . . . . . . Combat Hostiles . | . . . . . . . Parts Fried . | . . . . . . . Impact Corruptions 1 | . . . . 1 . . Robots Melted . | . . . . . . . Combat Hostiles . | . . . . . . . Parts Melted . | . . . . . . . Heat Transferred 36 | . . . . . 36 . Parts Sabotaged . | . . . . . . . Parts Stolen . | . . . . . . . Parts Stripped . | . . . . . . . Power Chain Reactions . | . . . . . . . Missiles Intercepted . | . . . . . . . Alert | -11 -10 -10 -9 -9 -9 -8 ------- Run | Scr Mat Min Mat Min Exi Min Peak Influence 412 | . 219 100 412 178 . . Average Influence 86 | . 90 36 220 72 . . Maximum Alert Level 2 | . 1 . 2 . . . Low Security (%) 87 | 100 91 100 30 100 . 100 Level 1 11 | . 8 . 58 . . . Level 2 1 | . . . 11 . . . Level 3 . | . . . . . . . Level 4 . | . . . . . . . Level 5 . | . . . . . . . High Security . | . . . . . . . Max Security . | . . . . . . . Squads Dispatched 6 | . 2 1 3 . . . Investigation 4 | . 2 1 1 . . . Extermination . | . . . . . . . Reinforcement 2 | . . . 2 . . . Assault . | . . . . . . . Garrison . | . . . . . . . Intercept . | . . . . . . . Construction Impeded . | . . . . . . . Haulers Reinforced . | . . . . . . . Stealth | -11 -10 -10 -9 -9 -9 -8 --------- Run | Scr Mat Min Mat Min Exi Min Distress Signals 5 | . . . 5 . . . Communications Jammed . | . . . . . . . Distress Signals . | . . . . . . . Times Spotted 71 | . 26 7 23 9 4 2 Peak Tracking Total 8 | . 4 3 8 3 5 4 Tactical Retreats 2 | . 1 . 1 . . . Traps | -11 -10 -10 -9 -9 -9 -8 ------- Run | Scr Mat Min Mat Min Exi Min Traps Triggered 4 | . 1 . . . 2 1 Indirectly . | . . . . . . . Trap Hack Attempts . | . . . . . . . Triggered . | . . . . . . . Disarmed . | . . . . . . . Reprogrammed . | . . . . . . . Reused . | . . . . . . . Traps Extracted . | . . . . . . . Installed 3 | . . . . . 2 1 Triggered . | . . . . . . . Machines | -11 -10 -10 -9 -9 -9 -8 ---------- Run | Scr Mat Min Mat Min Exi Min Machines Disabled 4 | . . . 1 . 3 . Max in Single Turn 2 | . . . 1 . 2 . Machines Sabotaged . | . . . . . . . Garrisons Compromised . | . . . . . . . Overloaded Fab Kills . | . . . . . . . Fab Network Shutdowns . | . . . . . . . Hacking | -11 -10 -10 -9 -9 -9 -8 --------- Run | Scr Mat Min Mat Min Exi Min Machines Accessed 7 | . 2 1 2 . 2 . Terminals 4 | . 2 . 2 . . . Fabricators . | . . . . . . . Repair Stations . | . . . . . . . Recycling Units . | . . . . . . . Scanalyzers . | . . . . . . . Garrison Access . | . . . . . . . Total Hacks 10 | . 4 1 3 . 2 . Successful 5 | . 1 1 1 . 2 . Failed 5 | . 3 . 2 . . . Catastrophic 3 | . 1 . 2 . . . Database Lockouts . | . . . . . . . Manual 8 | . 4 . 3 . 1 . Terminals 7 | . 4 . 3 . . . Fabricators . | . . . . . . . Repair Stations . | . . . . . . . Recycling Units . | . . . . . . . Scanalyzers . | . . . . . . . Garrison Access . | . . . . . . . Terminal Hacks 4 | . 1 1 . . 2 . Record 1 | . . . . . 1 . Open Door 1 | . . 1 . . . . Recall Investigation 1 | . 1 . . . . . EX-Prototype ID Bank 1 | . . . . . 1 . Fabricator Hacks . | . . . . . . . Repair Station Hacks . | . . . . . . . Recycling Unit Hacks . | . . . . . . . Scanalyzer . | . . . . . . . Garrison Access Hacks . | . . . . . . . Unauthorized Hacks 1 | . . . 1 . . . Terminals 1 | . . . 1 . . . Disrupt 1 | . . . 1 . . . Fabricators . | . . . . . . . Repair Stations . | . . . . . . . Recycling Units . | . . . . . . . Scanalyzers . | . . . . . . . Garrison Access . | . . . . . . . Data Cores Recovered . | . . . . . . . Used . | . . . . . . . Hacking Detections 4 | . 2 . 2 . . . Full Trace Events 2 | . 1 . 1 . . . Feedback Events . | . . . . . . . Feedback Blocked . | . . . . . . . Robot Schematics Acquired . | . . . . . . . Robots Built . | . . . . . . . Matter . | . . . . . . . Time . | . . . . . . . Total Robot Build Rating . | . . . . . . . Part Schematics Acquired . | . . . . . . . Parts Built . | . . . . . . . Matter . | . . . . . . . Time . | . . . . . . . Total Part Build Rating . | . . . . . . . Parts Repaired . | . . . . . . . Time . | . . . . . . . Parts Recycled . | . . . . . . . Recycled Matter . | . . . . . . . Retrieved Matter . | . . . . . . . Retrieved Components . | . . . . . . . Parts Scanalyzed . | . . . . . . . Part Schematics Acquired . | . . . . . . . Parts Damaged . | . . . . . . . Bothacking | -11 -10 -10 -9 -9 -9 -8 ------------ Run | Scr Mat Min Mat Min Exi Min Used RIF Installer . | . . . . . . . Robots Hacked . | . . . . . . . Non-combat . | . . . . . . . Combat . | . . . . . . . Robot Hacks Applied . | . . . . . . . Relay Couplers Released . | . . . . . . . Robots Rewired . | . . . . . . . Allies Hacked . | . . . . . . . Hacks Repelled . | . . . . . . . Allies | -11 -10 -10 -9 -9 -9 -8 -------- Run | Scr Mat Min Mat Min Exi Min Total Allies 2 | . . . . 2 . . Largest Group 2 | . . . . 2 2 . Highest-Rated Group 45 | . . . . 45 45 . Highest-Rated Ally 31 | . . . . 31 31 . Total Orders . | . . . . . . . Ally Attacks . | . . . . . . . Total Damage . | . . . . . . . Kills . | . . . . . . . Allies Corrupted . | . . . . . . . Allies Melted . | . . . . . . . Intel | -11 -10 -10 -9 -9 -9 -8 ------- Run | Scr Mat Min Mat Min Exi Min Robot Analysis Total . | . . . . . . . Derelict Logs Recovered 3 | . . 2 . 1 . . Drone Launches . | . . . . . . . Drone Recoveries . | . . . . . . . Exploration | -11 -10 -10 -9 -9 -9 -8 ------------- Run | Scr Mat Min Mat Min Exi Min Turns Passed 6050 | 75 1126 1309 703 1207 1529 101 Spaces Moved 2558 | 43 488 554 241 545 675 12 Core 5 | 5 . . . . . . Treads 2553 | 38 488 554 241 545 675 12 Legs . | . . . . . . . Wheels . | . . . . . . . Hover . | . . . . . . . Flight . | . . . . . . . Fastest Speed 50 | 50 160 185 205 200 180 220 Average Speed 201 | 150 186 211 205 204 203 220 Slowest Speed 270 | 160 220 220 270 205 220 220 Overloaded Moves . | . . . . . . . Propulsion Burnouts . | . . . . . . . Robots Hopped . | . . . . . . . Cave-ins Triggered . | . . . . . . . Exploration Rate (%) 53 | 3 90 95 21 89 69 6 Regions Visited 6 Branch Regions 4 Pre-discovered Areas 1 | . . . . . 1 . Known Exits Taken 1 | . . 1 . . . . Unknown Exits Taken 5 | 1 1 . 1 1 1 . Scrap Searched 3 | . . 1 . 2 . . Spaces Dug 18 | . . 11 4 3 . . Terrain Destroyed 73 | . . 11 44 3 15 . Melee 3 | . . . . 3 . . Projectile 2 | . . 2 . . . . AOE 68 | . . 9 44 . 15 . Actions | -11 -10 -10 -9 -9 -9 -8 --------- Run | Scr Mat Min Mat Min Exi Min Total 3042 | 50 597 618 345 589 773 70 Wait 98 | . 26 17 8 4 1 42 Move 2552 | 42 487 553 240 544 674 12 Hop . | . . . . . . . Pick Up 59 | 2 18 4 14 3 18 . Fast Attach 16 | 6 1 2 2 . 5 . Attach 22 | . 3 2 7 2 5 3 Detach 4 | . . . . . 4 . Swap 22 | . 1 3 7 3 6 2 Drop 27 | . 2 . . 4 20 1 Fire 232 | . 59 37 66 24 37 9 Melee 3 | . . . . 3 . . Ram . | . . . . . . . Kick . | . . . . . . . Crush 3 | . . . 1 2 . . Escape Stasis 1 | . . . . . 1 . Rewire . | . . . . . . . Trap 3 | . . . . . 2 1 Miscellaneous . | . . . . . . . Route ------- -11/Scrapyard -10/Materials (discovered 4 exits: *Mat x2 / *Min x2) -10/Mines (discovered 2 exits: *Mat x2) -9/Materials -9/Mines (discovered 3 exits: [*Mat x2] / *Exi) -9/Exiles -8/Mines History --------- Turn | Location | Event 22 | -11/Scrapyard | Discovered new exit (range 16) 76 | -11/Scrapyard | Entered Materials 86 | -10/Materials | Discovered new exit (range 16) 376 | -10/Materials | Discovered new exit (range 14) 403 | -10/Materials | Build established: Hauler-Mutant 625 | -10/Materials | Discovered new exit (range 8) 863 | -10/Materials | Core integrity fell below 50% 879 | -10/Materials | Lost 3 parts (1p1n1w) 886 | -10/Materials | Discovered new exit (range 4) 1202 | -10/Materials | Entered Mines 1517 | -10/Mines | Learned Materials interactive machine intel 1595 | -10/Mines | Received a Rocket Launcher from a helpful Derelict 1749 | -10/Mines | Identified exit to Materials 2143 | -10/Mines | Lost 3 parts (1p2w) 2196 | -10/Mines | Met a Derelict shopkeep closing up shop 2411 | -10/Mines | Discovered exit to Materials (range 10) 2511 | -10/Mines | Entered Materials 2511 | -9/Materials | Evolved 2 slots: Utility x2 2512 | -9/Materials | Loaded intel: 18 interactive machine locations 2787 | -9/Materials | Lost 3 parts (1n1u1w) 2960 | -9/Materials | Discovered new exit (range 11) 3214 | -9/Materials | Entered Mines 3296 | -9/Mines | Discovered new exit (range 3) 3316 | -9/Mines | Core integrity fell below 50% 3515 | -9/Mines | Found a hidden stash of uninstalled traps 4019 | -9/Mines | Discovered new exit (range 7) 4250 | -9/Mines | Learned Materials emergency access door positions 4411 | -9/Mines | Deemed a non-threat by the Exiles lab entrance 4413 | -9/Mines | Discovered new exit (range 5) 4421 | -9/Mines | Entered Exiles 4421 | -9/Exiles | Accompanied by 2 allies 4451 | -9/Exiles | Led the pair of lost Derelicts to a safe place 4471 | -9/Exiles | Met 8R-AWN 4503 | -9/Exiles | Met EX-HEX 4583 | -9/Exiles | Met EX-DEC 4591 | -9/Exiles | Learned location of Zion (-6) 4822 | -9/Exiles | Met EX-BIN 4846 | -9/Exiles | Aligned with FarCom system 4848 | -9/Exiles | Given EX-Vault access code 4898 | -9/Exiles | Opened EX-Vault 4915 | -9/Exiles | Found XL Autogun Array 4933 | -9/Exiles | Found Trap Reconfigurator 4938 | -9/Exiles | Found Supersonic Drone Bay 4981 | -9/Exiles | Warned to stay clear of 0b10 Research branches 5130 | -9/Exiles | Discovered new exit (range 15) 5479 | -9/Exiles | Attacked by the Exiles 5568 | -9/Exiles | Lost 3 parts (1p1u1w) 5592 | -9/Exiles | Destroyed 8R-AWN 5612 | -9/Exiles | Found Prototype Device 5612 | -9/Exiles | Identified AS-neutralizer No. 17b 5620 | -9/Exiles | Found Prototype Ballistic Gun 5776 | -9/Exiles | Found Prototype Protection 5801 | -9/Exiles | Found Prototype Processor 5950 | -9/Exiles | Stole three prototypes: Trap Reconfigurator, Supersonic Drone Bay, XL Autogun Array 5950 | -9/Exiles | Entered Mines 6021 | -8/Mines | NK-0LA came to Exiles' defense 6035 | -8/Mines | Core integrity fell below 20% 6051 | -8/Mines | Destroyed by NK-0LA with NK-0LA's Tesla Doomcannon Last Messages --------------- A strange signal echoes through the mines. LOCATION=UNKNOWN GOAL=ESCAPE 05979_ K-01 Serf collects debris. 06020_ Dropped Stasis Trap. 06021_ NK-0LA: "I came as fast as I could... Wait, it was you!" 06021_ Installed Stasis Trap. 06022_ Triggered Stasis Trap. 06022_ A bubble of rippling energy engulfs the area. 06022_ Field strength at 70. 06024_ Critical hit. 06030_ Stasis field depleted. 06034_ Lgt. Treads destroyed. 06040_ System corrupted: Lgt. Assault Rifle targeting data glitched. 06041_ Lgt. Assault Rifle destroyed. 06041_ Hrd. Light Armor Plating destroyed. 06042_ Reflective Plating severed. 06043_ Lgt. Treads destroyed. 06046_ System corrupted: Lgt. Assault Rifle targeting data glitched. 06051_ L-31 Rogue destroyed. Map ----- +----------------------------------------------------+ | ?????????????????????????????????????????????????? | | ?????????????????????????????????????????????????? | | ?????????????????????????????????????????????????? | | ?????????????????????????????????????????????????? | | ?????????????????????????????????????????????????? | | ?????????????????????????????????????????????????? | | ?????????????????????????????????????????????????? | | ?????????????????????????????????????????????????? | | ?????????????????????????????????????????????????? | | ?????????????????????????????????????????????????? | | ?????????????????????????????????????????????????? | | ?????????????????????????????????????????????????? | | ?????????????????????????????????????????????????? | | ?????????????????????????????????????????????????? | | ?????????????????????????????????????????????????? | | ?????????????????????????????????????????????????? | | ?????????????????????????????????????????????????? | | ?????????????????????????????????????????????????? | | ?????????????????????????????????????????????????? | | ?????????????????????????????????????????????????? | | ?????????????????????????????????????????????????? | | ??????????????????????????????????????????? ?????? | | ?????????????????????????????????????##### ?????? | | ????????????????????????????????????# ?????? | | ????????????????????#???#####??????# ?????? | | ????????????????##### ###@ ##????# ?????? | | ????????????????# = ##### ??????? | | ????????????????# *%= ## #???????????? | | ????????????????# ### x #????????????? | | ?????????????????????## ##????????????? | | ??????????????????????## ##?????????????? | | ???????????????????????## ##??????????????? | | ????????????????????????## ##???????????????? | | ?????????????????????????## ##????????????????? | | ??????????????????????????######?????????????????? | | ?????????????????????????????????????????????????? | | ?????????????????????????????????????????????????? | | ?????????????????????????????????????????????????? | | ?????????????????????????????????????????????????? | | ?????????????????????????????????????????????????? | | ?????????????????????????????????????????????????? | | ?????????????????????????????????????????????????? | | ?????????????????????????????????????????????????? | | ?????????????????????????????????????????????????? | | ?????????????????????????????????????????????????? | | ?????????????????????????????????????????????????? | | ?????????????????????????????????????????????????? | | ?????????????????????????????????????????????????? | | ?????????????????????????????????????????????????? | | ?????????????????????????????????????????????????? | +----------------------------------------------------+ Best States ------------- Heat Dissipation 28 Energy Generation 19 Energy Capacity 310 Matter Stores 300 Matter Capacity 300 Sight Range 16 Terrain Scan Density 10 Armor Coverage 375 Evasion (%) 40 Recoil Reduction 2 Item Schematics ----------------- None Robot Schematics ------------------ None Fabricated ------------ Nothing Alien Tech Used ----------------- None Achievements -------------- None Challenges ------------ None Game ------ Seed ScatterSupercompositeSuite Manual? 0 Play Time 00:27:25 Cumulative 113.3 hours Start 2020.09.03 @ 19:52:37 End 2020.09.03 @ 20:18:35 Sessions 1 Manual Loads 0 Difficulty Rogue Special Mode None Game No. 134 Rogue 47 Adventurer 87 Explorer 0 Win Type - Total 4 Types 3/0/0/1/0/0/0 Lore% 53 Gallery% 64 Achievement% 55 Wizard Run 0 Options --------- ASCII 0 Keyboard 1 Movement Numpad Keybinds 0 Fullscreen 1 Font 18/Smallcaps Map View 76x50 Tactical HUD 1 Map Filters NONE Filters NONE Steam 1 RUN: 83ab72b8-6556-43f3-aac4-5e2383b61e11